Workbook

Sheet Лист2
B2: 2. План учебного процесса образовательной программы СПО 43.02.15 "Поварское и кондитерское дело" 024П
A3: Индекс | B3: Наименование циклов, дисциплин, профессиональных модулей, МДК, практик | C3: Формулы промежуточной аттестации | F3: максимальная учебная нагрузка | G3: Учебная нагрузка обучающихся (час.) | P3: Распределение учебной нагрузки по курсам и семестрам ( час. в семестр)
G4: Самостоятельная учебная работа | H4: Всего | P4: 1 курс | R4: 2 курс | T4: 3 курс | V4: 4 курс
I5: в т.ч. по учебным дисциплинам и МДК | L5: По практике учебной | M5: По практике производственной | N5: Консультация | O5: Промежуточная консультация | P5: 1 сем. | Q5: 2 сем. | R5: 3 сем. | S5: 4 сем. | T5: 5 сем. | U5: 6 сем. | V5: 7 сем. | W5: 8 сем.
C6: Зачеты | D6: Дифференцированных зачётов | E6: Экзамены | P6: 16 нед. | Q6: 23 нед. | R6: 16 нед. | S6: 15 нед. | T6: 10 нед. | U6: 16 нед. | V6: 12 нед. | W6: 6 нед.
I7: Теоретического обучения | J7: лаб. и практ. занятий | K7: Курсовых работ(проектов) | P7: (17 нед. т/о+ПА) | Q7: (24 нед. т/о+ ПА) | R7: (17 нед. т/о) | S7: (18 нед. т/о+4 нед. УП+2 нед. ПП+ПА) | T7: (14 нед. т/о+2 нед. УП+ 1 нед. ПП+ПА) | U7: (17 нед. т/о+4 нед. УП+4 нед. ПП+ПА) | V7: (13 нед. т/о+2 нед. УП+2 нед. ПП+ПА) | W7: (8нед. т/о+3 нед. УП+3нед. ПП+4 нед. ПДП+ПА+6 нед. ГИА)
X9: каралмаган
A13: 1 | B13: 2 | C13: 3 | D13: 4 | E13: 5 | F13: 6 | G13: 7 | H13: 8 | I13: 9 | J13: 10 | K13: 11 | L13: 12 | M13: 13 | N13: 14 | O13: 15 | P13: 16 | Q13: 17 | R13: 18 | S13: 19 | T13: 20 | U13: 21 | V13: 22 | W13: 23
A14: ОУД.00 | B14: Общеобразовательные учебные дисциплины | C14: =COUNTA(C15:C30) -> 1 | D14: =COUNTA(D15:D30) -> 12 | E14: =COUNTA(E15:E30) -> 4 | F14: =SUM(F15:F30) -> 1476 | G14: 0 | H14: =I14+J14+K14+L14+M14+N14+O14 -> 1486 | I14: =SUM(I15:I30) -> 567 | J14: =SUM(J15:J30) -> 853 | K14: =SUM(K15:K30) -> 0 | L14: =SUM(L15:L30) -> 0 | M14: =SUM(M15:M30) -> 0 | N14: =SUM(N15:N30) -> 18 | O14: =SUM(O15:O30) -> 48 | P14: =SUM(P15:P30) -> 612 | Q14: =SUM(Q15:Q30) -> 864 | R14: =SUM(R15:R30) -> 0 | S14: =SUM(S15:S30) -> 0 | T14: =SUM(T15:T30) -> 0 | U14: =SUM(U15:U30) -> 0 | V14: =SUM(V15:V30) -> 0 | W14: =SUM(W15:W30) -> 0 | X14: =SUM(P14:W14) -> 1476
A15: ОУД.01 | B15: Русский язык | E15: 1 | F15: 84 | G15: 0 | H15: =I15+J15+K15+L15+M15+N15+O15 -> 84 | I15: 34 | J15: 42 | N15: 2 | O15: 6 | P15: 84 | X15: =SUM(P15:W15) -> 84
A16: ОУД.02 | B16: Литература | D16: 2 | F16: 114 | G16: 0 | H16: =I16+J16+K16+L16+M16+N16+O16 -> 114 | I16: 40 | J16: 72 | O16: 2 | P16: 48 | Q16: 66 | X16: =SUM(P16:W16) -> 114
A17: ОУД.03 | B17: Математика | E17: 2 | F17: 232 | G17: 0 | H17: =I17+J17+K17+L17+M17+N17+O17 -> 232 | I17: 70 | J17: 154 | N17: 2 | O17: 6 | P17: 122 | Q17: 110 | X17: =SUM(P17:W17) -> 232
A18: ОУД.04 | B18: Иностранный язык | D18: 2 | F18: 180 | G18: 0 | H18: =I18+J18+K18+L18+M18+N18+O18 -> 180 | I18: 58 | J18: 120 | O18: 2 | P18: 60 | Q18: 120 | X18: =SUM(P18:W18) -> 180
A19: ОУД.05 | B19: Информатика | D19: 2 | F19: 108 | G19: 0 | H19: =I19+J19+K19+L19+M19+N19+O19 -> 108 | I19: 26 | J19: 80 | O19: 2 | P19: 30 | Q19: 78 | X19: =SUM(P19:W19) -> 108
A20: ОУД.06 | B20: Физика | E20: 2 | F20: 100 | G20: 0 | H20: =I20+J20+K20+L20+M20+N20+O20 -> 100 | I20: 36 | J20: 56 | N20: 2 | O20: 6 | P20: 60 | Q20: 40 | X20: =SUM(P20:W20) -> 100
A21: ОУД.07 | B21: Химия | D21: 2 | F21: 78 | G21: 0 | H21: =I21+J21+K21+L21+M21+N21+O21 -> 78 | I21: 48 | J21: 28 | O21: 2 | P21: 34 | Q21: 44 | X21: =SUM(P21:W21) -> 78
A22: ОУД.08 | B22: Биология | E22: 2 | F22: 72 | G22: 0 | H22: =I22+J22+K22+L22+M22+N22+O22 -> 72 | I22: 42 | J22: 22 | N22: 2 | O22: 6 | P22: 48 | Q22: 24 | X22: =SUM(P22:W22) -> 72
A23: ОУД.09 | B23: История | D23: 2 | F23: 136 | G23: 0 | H23: =I23+J23+K23+L23+M23+N23+O23 -> 136 | I23: 62 | J23: 72 | N23: 0 | O23: 2 | P23: 40 | Q23: 96 | X23: =SUM(P23:W23) -> 136
A24: ОУД.10 | B24: Обществознание | D24: 2 | F24: 72 | G24: 0 | H24: =I24+J24+K24+L24+M24+N24+O24 -> 72 | I24: 50 | J24: 20 | N24: 0 | O24: 2 | Q24: 72 | X24: =SUM(P24:W24) -> 72
A25: ОУД.11 | B25: География | D25: 2 | F25: 36 | G25: 0 | H25: =I25+J25+K25+L25+M25+N25+O25 -> 36 | I25: 22 | J25: 12 | N25: 0 | O25: 2 | Q25: 36 | X25: =SUM(P25:W25) -> 36
A26: ОУД 12 | B26: Физическая культура | C26: 1 | D26: 2 | F26: 72 | G26: 0 | H26: =I26+J26+K26+L26+M26+N26+O26 -> 72 | I26: 7 | J26: 63 | N26: 0 | O26: 2 | P26: 35 | Q26: 37 | X26: =SUM(P26:W26) -> 72
A27: ОУД 13 | B27: Основы безопасности и защиты Родины | D27: 2 | F27: 80 | G27: 0 | H27: =I27+J27+K27+L27+M27+N27+O27 -> 80 | I27: 38 | J27: 40 | N27: 0 | O27: 2 | Q27: 80 | X27: =SUM(P27:W27) -> 80
A28: ОУД 14 | B28: Родная литература | D28: 2 | F28: 40 | G28: 0 | H28: =I28+J28+K28+L28+M28+N28+O28 -> 40 | I28: 10 | J28: 28 | N28: 0 | O28: 2 | P28: 15 | Q28: 25 | X28: =SUM(P28:W28) -> 40
A29: ОУД 15 | B29: Родной язык | D29: 1 | F29: 36 | G29: 0 | H29: =I29+J29+K29+L29+M29+N29+O29 -> 36 | I29: 10 | J29: 24 | N29: 0 | O29: 2 | P29: 36 | X29: =SUM(P29:W29) -> 36
A30: ОУД 16 | B30: Индивидуальный проект | D30: 2 | F30: 36 | G30: 0 | H30: =I30+J30+K30+L30+M30+N30+O30 -> 46 | I30: 14 | J30: 20 | N30: =SUM(N31:N36) -> 10 | O30: 2 | Q30: 36 | X30: =SUM(P30:W30) -> 36
A31: СГ.00 | B31: Общий гуманитарный и социально-экономический цикл | C31: =COUNTA(C32:C37) -> 2 | D31: =COUNTA(D32:D37) -> 3 | E31: =COUNTA(E32:E37) -> 3 | F31: =SUM(F32:F37) -> 554 | G31: 0 | H31: =I31+J31+K31+L31+M31+N31+O31 -> 546 | I31: =SUM(I32:I37) -> 198 | J31: =SUM(J32:J37) -> 322 | K31: =SUM(K32:K37) -> 0 | L31: =SUM(L32:L37) -> 0 | M31: =SUM(M32:M37) -> 0 | N31: =SUM(N32:N37) -> 6 | O31: =SUM(O32:O37) -> 20 | P31: =SUM(P32:P37) -> 0 | Q31: =SUM(Q32:Q37) -> 0 | R31: =SUM(R32:R37) -> 152 | S31: =SUM(S32:S37) -> 198 | T31: =SUM(T32:T37) -> 90 | U31: =SUM(U32:U37) -> 78 | V31: =SUM(V32:V37) -> 0 | W31: =SUM(W32:W37) -> 36 | X31: =SUM(P31:W31) -> 554
A32: СГ. 01 | B32: Основы философии | D32: 8 | F32: =G32+H32 -> 36 | G32: 0 | H32: =I32+J32+K32+L32+M32+N32+O32 -> 36 | I32: 34 | O32: 2 | W32: 36 | X32: =SUM(P32:W32) -> 36
A33: СГ. 02 | B33: История | D33: 3 | F33: =G33+H33 -> 48 | G33: 0 | H33: =I33+J33+K33+L33+M33+N33+O33 -> 48 | I33: 40 | J33: 6 | O33: 2 | R33: 48 | X33: =SUM(P33:W33) -> 48
A34: СГ. 03 | B34: Иностранный язык в профессиональной деятельности | C34: 4 | E34: 6 | F34: =G34+H34 -> 186 | G34: 0 | H34: =I34+J34+K34+L34+M34+N34+O34 -> 186 | I34: 74 | J34: 104 | N34: 2 | O34: 6 | R34: 48 | S34: 30 | T34: 60 | U34: 48 | X34: =SUM(P34:W34) -> 186
A35: СГ. 04 | B35: Физическая культура | C35: 4 | D35: 6 | F35: =G35+H35 -> 160 | G35: 0 | H35: =I35+J35+K35+L35+M35+N35+O35 -> 160 | I35: 2 | J35: 156 | O35: 2 | R35: 32 | S35: 68 | T35: 30 | U35: 30 | X35: =SUM(P35:W35) -> 160
A36: СГ. 05 | B36: Психология общения | E36: 4 | F36: =G36+H36 -> 52 | G36: 0 | H36: =I36+J36+K36+L36+M36+N36+O36 -> 52 | I36: 18 | J36: 28 | N36: 2 | O36: 4 | R36: 24 | S36: 28 | X36: =SUM(P36:W36) -> 52
A37: СГ. 06 | B37: Татарский язык в профессиональной деятельности | E37: 4 | F37: =G37+H37 -> 72 | G37: 8 | H37: =I37+J37+K37+L37+M37+N37+O37 -> 64 | I37: 30 | J37: 28 | N37: 2 | O37: 4 | S37: 72 | X37: =SUM(P37:W37) -> 72
A38: ЕН.00 | B38: Математический и общий естественнонаучный цикл | C38: =COUNTA(C39:C40) -> 0 | D38: =COUNTA(D39:D40) -> 2 | E38: =COUNTA(E39:E40) -> 0 | F38: =SUM(F39:F40) -> 180 | G38: 0 | H38: =I38+J38+K38+L38+M38+N38+O38 -> 180 | I38: =SUM(I39:I40) -> 124 | J38: =SUM(J39:J40) -> 52 | K38: =SUM(K39:K40) -> 0 | L38: =SUM(L39:L40) -> 0 | M38: =SUM(M39:M40) -> 0 | N38: =SUM(N39:N40) -> 0 | O38: =SUM(O39:O40) -> 4 | P38: =SUM(P39:P40) -> 0 | Q38: =SUM(Q39:Q40) -> 0 | R38: 144 | S38: 0 | T38: =SUM(T39:T40) -> 0 | U38: =SUM(U39:U40) -> 36 | V38: =SUM(V39:V40) -> 0 | W38: =SUM(W39:W40) -> 0 | X38: =SUM(P38:W38) -> 180
A39: ЕН. 01 | B39: Химия | D39: 3 | F39: 144 | G39: 0 | H39: =I39+J39+K39+L39+M39+N39+O39 -> 144 | I39: 100 | J39: 42 | O39: 2 | R39: 144 | X39: =SUM(P39:W39) -> 144
A40: ЕН. 02 | B40: Экологические основы природопользования | D40: 6 | F40: 36 | G40: 2 | H40: =I40+J40+K40+L40+M40+N40+O40 -> 36 | I40: 24 | J40: 10 | O40: 2 | U40: 36 | X40: =SUM(P40:W40) -> 36
A41: ОП.00 | B41: Общепрофессиональный цикл | C41: 0 | D41: =COUNT(D42:D50) -> 4 | E41: =COUNT(E42:E50) -> 5 | F41: =SUM(F42:F50) -> 622 | G41: =SUM(G42:G50) -> 18 | H41: =SUM(H42:H50) -> 604 | I41: =SUM(I42:I50) -> 272 | J41: =SUM(J42:J50) -> 286 | K41: =SUM(K42:K50) -> 0 | L41: =SUM(L42:L50) -> 0 | M41: =SUM(M42:M50) -> 0 | N41: =SUM(N42:N50) -> 14 | O41: =SUM(O42:O50) -> 32 | Q41: =SUM(Q42:Q50) -> 0 | R41: =SUM(R42:R50) -> 156 | S41: =SUM(S42:S50) -> 58 | T41: =SUM(T42:T50) -> 262 | U41: =SUM(U42:U50) -> 110 | V41: =SUM(V42:V50) -> 36 | W41: =SUM(W42:W50) -> 0 | X41: =SUM(P41:W41) -> 622
A42: ОП.01 | B42: Микробиология, физиология питания, санитария и гигиена | D42: 5 | F42: =G42+H42 -> 64 | G42: 8 | H42: =I42+J42+K42+L42+M42+N42+O42 -> 56 | I42: 38 | J42: 16 | O42: 2 | T42: 64 | X42: =SUM(P42:W42) -> 64
A43: ОП.02 | B43: Организация хранения и контроль запасов и сырья | E43: 6 | F43: =G43+H43 -> 92 | G43: 0 | H43: =I43+J43+K43+L43+M43+N43+O43 -> 92 | I43: 40 | J43: 42 | N43: 4 | O43: 6 | T43: 50 | U43: 42 | X43: =SUM(P43:W43) -> 92
A44: ОП.03 | B44: Техническое оснащение организаций питания | E44: 3 | F44: =G44+H44 -> 64 | G44: 0 | H44: =I44+J44+K44+L44+M44+N44+O44 -> 64 | I44: 30 | J44: 24 | N44: 4 | O44: 6 | R44: 64 | X44: =SUM(P44:W44) -> 64
A45: ОП.04 | B45: Организация обслуживания | E45: 5 | F45: =G45+H45 -> 100 | G45: 10 | H45: =I45+J45+K45+L45+M45+N45+O45 -> 90 | I45: 58 | J45: 26 | N45: 2 | O45: 4 | T45: 100 | X45: =SUM(P45:W45) -> 100
A46: ОП.05 | B46: Основы экономики, менеджмента, маркетинга | E46: 5 | F46: =G46+H46 -> 48 | G46: 0 | H46: =I46+J46+K46+L46+M46+N46+O46 -> 48 | I46: 24 | J46: 18 | N46: 2 | O46: 4 | T46: 48 | X46: =SUM(P46:W46) -> 48
A47: ОП.06. | B47: Правовые основы профессиональной деятельности | D47: 3 | F47: =G47+H47 -> 56 | G47: 0 | H47: =I47+J47+K47+L47+M47+N47+O47 -> 56 | I47: 26 | J47: 28 | O47: 2 | R47: 56 | X47: =SUM(P47:W47) -> 56
A48: ОП.07 | B48: Информационые технологии в профессиональной деятельности | D48: 4 | F48: =G48+H48 -> 94 | G48: 0 | H48: =I48+J48+K48+L48+M48+N48+O48 -> 94 | I48: 20 | J48: 72 | O48: 2 | R48: 36 | S48: 58 | X48: =SUM(P48:W48) -> 94
A49: ОП.08 | B49: Охрана труда | E49: 7 | F49: =G49+H49 -> 36 | G49: 0 | H49: =I49+J49+K49+L49+M49+N49+O49 -> 36 | I49: 16 | J49: 14 | N49: 2 | O49: 4 | V49: 36 | X49: =SUM(P49:W49) -> 36
A50: ОП.09 | B50: Безопасность жизнедеятельности | D50: 6 | F50: =G50+H50 -> 68 | G50: 0 | H50: =I50+J50+K50+L50+M50+N50+O50 -> 68 | I50: 20 | J50: 46 | O50: 2 | U50: 68 | X50: =SUM(P50:W50) -> 68
A51: П. 00 | B51: Профессиональный цикл | C51: =C52+C58+C64+C70+C76+C82+C87 -> 0 | D51: =D52+D58+D64+D70+D76+D82+D87 -> 20 | E51: =E52+E58+E64+E70+E76+E82+E87 -> 7 | F51: =F52+F58+F64+F70+F76+F82+F87 -> 2748 | G51: =G52+G58+G64+G70+G76+G82+G87 -> 68 | H51: =H52+H58+H64+H70+H76+H82+H87 -> 2662 | I51: =I52+I58+I64+I70+I76+I82+I87 -> 640 | J51: =J52+J58+J64+J70+J76+J82+J87 -> 564 | K51: =K52+K58+K64+K70+K76+K82+K87 -> 40 | L51: =L52+L58+L64+L70+L76+L82+L87 -> 540 | M51: =M52+M58+M64+M70+M76+M82+M87 -> 756 | N51: =N52+N58+N64+N70+N76+N82+N87 -> 0 | O51: =O52+O58+O64+O70+O76+O82+O87 -> 122 | P51: 0 | Q51: 0 | R51: =R52+R58+R64+R70+R82+R87+R76 -> 160 | S51: =S52+S58+S64+S70+S82+S87+S76 -> 608 | T51: =T52+T58+T64+T70+T82+T87+T76 -> 260 | U51: =U52+U58+U64+U70+U82+U87+U76 -> 640 | V51: =V52+V58+V64+V70+V82+V87+V76 -> 576 | W51: =W52+W58+W64+W70+W82+W87+W76 -> 504 | X51: =SUM(P51:W51) -> 2748
A52: ПМ. 01 | B52: Организация и ведение процессов приготовления и подготовки к реализации полуфабрикатов для блюд, кулинарных изделий сложного ассортимента | C52: =COUNTA(C53:C57) -> 0 | D52: =COUNTA(D53:D57) -> 3 | E52: =COUNTA(E53:E57) -> 1 | F52: =SUM(F53:F57) -> 288 | G52: =SUM(G53:G57) -> 12 | H52: =SUM(H53:H57) -> 276 | I52: =SUM(I53:I57) -> 44 | J52: =SUM(J53:J57) -> 36 | K52: =SUM(K53:K57) -> 0 | L52: =SUM(L53:L57) -> 72 | M52: =SUM(M53:M57) -> 108 | N52: =SUM(N53:N57) -> 0 | O52: =SUM(O53:O57) -> 16 | P52: 0 | Q52: 0 | R52: 0 | S52: =S53+S54+S55+S56+S57 -> 288 | T52: =T53+T54+T55+T56+T57 -> 0 | U52: =U53+U54+U55+U56+U57 -> 0 | V52: =V53+V54+V55+V56+V57 -> 0 | W52: =W53+W54+W55+W56+W57 -> 0 | X52: =SUM(P52:W52) -> 288
A53: МДК. 01.01 | B53: Организация процессов приготовления, подготовки креализации кулинарных полуфабрикатов | D53: 4 | F53: =G53+H53 -> 36 | G53: 6 | H53: =I53+J53+K53+L53+M53+N53+O53 -> 30 | I53: 16 | J53: 12 | O53: 2 | S53: 36 | X53: =SUM(P53:W53) -> 36
A54: МДК. 01.02 | B54: Процессы приготовления, подготовки к реализации кулинарных полуфабрикатов | D54: 4 | F54: =G54+H54 -> 60 | G54: 6 | H54: =I54+J54+K54+L54+M54+N54+O54 -> 54 | I54: 28 | J54: 24 | O54: 2 | S54: 60 | X54: =SUM(P54:W54) -> 60
A55: УП. 01 | B55: Учебная практика | D55: 4* | F55: 72 | G55: 0 | H55: =I55+J55+K55+L55+M55+N55+O55 -> 72 | L55: 72 | S55: 72 | X55: =SUM(P55:W55) -> 72
A56: ПП.01 | B56: Производственная практика | F56: 108 | G56: 0 | H56: =I56+J56+K56+L56+M56+N56+O56 -> 108 | M56: 108 | S56: 108 | X56: =SUM(P56:W56) -> 108
A57: ПМ.01.Э | B57: Экзамен по модулю | E57: 4 | F57: 12 | G57: 0 | H57: =I57+J57+K57+L57+M57+N57+O57 -> 12 | O57: 12 | S57: 12 | X57: =SUM(P57:W57) -> 12
A58: ПМ.02 | B58: Организация и ведение процессов приготовления,оформления и подготовки к реализации горячихблюд, кулинарных изделий, закусок сложного ассортимента с учетом потребностей различных категорий потребителей, видов и форм обслуживания | C58: =COUNTA(C59:C63) -> 0 | D58: =COUNTA(D59:D63) -> 3 | E58: =COUNTA(E59:E63) -> 1 | F58: =SUM(F59:F63) -> 480 | G58: =SUM(G59:G63) -> 10 | H58: =SUM(H59:H63) -> 470 | I58: =SUM(I59:I63) -> 90 | J58: =SUM(J59:J63) -> 92 | K58: =SUM(K59:K63) -> 20 | L58: =SUM(L59:L63) -> 108 | M58: =SUM(M59:M63) -> 144 | N58: =SUM(N59:N63) -> 0 | O58: =SUM(O59:O63) -> 16 | P58: =SUM(P59:P63) -> 0 | Q58: =SUM(Q59:Q63) -> 0 | R58: =SUM(R59:R63) -> 160 | S58: =SUM(S59:S63) -> 320 | T58: =SUM(T59:T63) -> 0 | U58: =SUM(U59:U63) -> 0 | V58: =SUM(V59:V63) -> 0 | W58: =SUM(W59:W63) -> 0 | X58: =SUM(P58:W58) -> 480
A59: МДК 02.01 | B59: Организация процессов приготовления, подготовки к реализации горячих блюд, кулинарных изделий, закусок сложного ассортимента | D59: 4 | F59: =G59+H59 -> 36 | G59: 0 | H59: =I59+J59+K59+L59+M59+N59+O59 -> 36 | I59: 20 | J59: 14 | O59: 2 | S59: 36 | X59: =SUM(P59:W59) -> 36
A60: МДК. 02.02 | B60: Процессы приготовления, подготовки к реализациигорячих блюд, кулинарных изделий, закусок сложного ассортимента | D60: 4 | F60: =G60+H60 -> 180 | G60: 10 | H60: =I60+J60+K60+L60+M60+N60+O60 -> 170 | I60: 70 | J60: 78 | K60: 20 | O60: 2 | R60: 124 | S60: 56 | X60: =SUM(P60:W60) -> 180
A61: УП. 02 | B61: Учебная практика | D61: 4 | F61: 108 | G61: 0 | H61: =I61+J61+K61+L61+M61+N61+O61 -> 108 | L61: 108 | R61: 36 | S61: 72 | X61: =SUM(P61:W61) -> 108
A62: ПП.02 | B62: Производственная практика | F62: 144 | G62: 0 | H62: =I62+J62+K62+L62+M62+N62+O62 -> 144 | M62: 144 | N62: 0 | O62: 0 | S62: 144 | X62: =SUM(P62:W62) -> 144
A63: ПМ.02.Э | B63: Экзамен по модулю | E63: 4 | F63: 12 | G63: 0 | H63: =I63+J63+K63+L63+M63+N63+O63 -> 12 | O63: 12 | S63: 12 | X63: =SUM(P63:W63) -> 12
A64: ПМ 03 | B64: Организация и ведение процессов приготовления, оформления и подготовки к реализации холодных блюд, кулинарных изделий, закусок сложного ассортимента с учетом потребностей различных категорий потребителей, видов и форм обслуживания | C64: 0 | D64: 3 | E64: 1 | F64: =SUM(F65:F69) -> 236 | G64: =SUM(G65:G69) -> 12 | H64: =SUM(H65:H69) -> 224 | I64: =SUM(I65:I69) -> 58 | J64: =SUM(J65:J69) -> 42 | K64: =SUM(K65:K69) -> 0 | L64: =SUM(L65:L69) -> 36 | M64: =SUM(M65:M69) -> 72 | N64: =SUM(N65:N69) -> 0 | O64: =SUM(O65:O69) -> 16 | P64: =SUM(P65:P69) -> 0 | Q64: =SUM(Q65:Q69) -> 0 | R64: =SUM(R65:R69) -> 0 | S64: =SUM(S65:S69) -> 0 | T64: =SUM(T65:T69) -> 0 | U64: =SUM(U65:U69) -> 236 | V64: =SUM(V65:V69) -> 0 | W64: =SUM(W65:W69) -> 0 | X64: =SUM(P64:W64) -> 236
A65: МДК 03.01 | B65: Организация процессов приготовления, подготовки к реализации холодных блюд, кулинарных изделий, закусок сложного ассортимента | D65: 6 | F65: =SUM(G65:H65) -> 40 | G65: 6 | H65: =I65+J65+K65+L65+M65+N65+O65 -> 34 | I65: 20 | J65: 12 | O65: 2 | U65: 40 | X65: =SUM(P65:W65) -> 40
A66: МДК 03.02 | B66: Процессы приготовления, подготовки к реализации холодных блюд, кулинарных изделий, закусок сложного ассортимента | D66: 6 | F66: =SUM(G66:H66) -> 76 | G66: 6 | H66: =I66+J66+K66+L66+M66+N66+O66 -> 70 | I66: 38 | J66: 30 | O66: 2 | U66: 76 | X66: =SUM(P66:W66) -> 76
A67: УП. 03 | B67: Учебная практика | D67: 6* | F67: =SUM(G67:H67) -> 36 | G67: 0 | H67: =I67+J67+K67+L67+M67+N67+O67 -> 36 | L67: 36 | U67: 36 | X67: =SUM(P67:W67) -> 36
A68: ПП.03 | B68: Производственная практика | F68: =SUM(G68:H68) -> 72 | G68: 0 | H68: =I68+J68+K68+L68+M68+N68+O68 -> 72 | M68: 72 | U68: 72 | X68: =SUM(P68:W68) -> 72
A69: ПМ.03.Э | B69: Экзамен по модулю | E69: 6 | F69: =SUM(G69:H69) -> 12 | G69: 0 | H69: =I69+J69+K69+L69+M69+N69+O69 -> 12 | O69: 12 | U69: 12 | X69: =SUM(P69:W69) -> 12
A70: ПМ. 04 | B70: Организация и ведение процессов приготовления, оформления и подготовки к реализации холодных и горячих десертов, напитков сложного ассортимента с учетом потребностей различных категорий потребителей, видов и форм обслуживания | D70: 3 | E70: 1 | F70: =SUM(F71:F75) -> 258 | G70: =SUM(G71:G75) -> 18 | H70: =SUM(H71:H75) -> 240 | I70: =SUM(I71:I75) -> 66 | J70: =SUM(J71:J75) -> 50 | K70: =SUM(K71:K75) -> 0 | L70: =SUM(L71:L75) -> 36 | M70: =SUM(M71:M75) -> 72 | N70: =SUM(N71:N75) -> 0 | O70: =SUM(O71:O75) -> 16 | P70: =SUM(P71:P75) -> 0 | Q70: =SUM(Q71:Q75) -> 0 | R70: =SUM(R71:R75) -> 0 | S70: =SUM(S71:S75) -> 0 | T70: =SUM(T71:T75) -> 0 | U70: =SUM(U71:U75) -> 0 | V70: =SUM(V71:V75) -> 258 | W70: =SUM(W71:W75) -> 0 | X70: =SUM(P70:W70) -> 258
A71: МДК. 04.01 | B71: Организация процессов приготовления, подготовки к реализации холодных и горячих десертов, напитков сложного ассортимента | D71: 7 | F71: =G71+H71 -> 48 | G71: 10 | H71: =I71+J71+K71+L71+M71+N71+O71 -> 38 | I71: 22 | J71: 14 | O71: 2 | V71: 48 | X71: =SUM(P71:W71) -> 48
A72: МДК. 04.02 | B72: Процессы приготовления, подготовки к реализации холодных и горячих десертов, напитков сложного ассортимента | D72: 7 | F72: =G72+H72 -> 90 | G72: 8 | H72: =I72+J72+K72+L72+M72+N72+O72 -> 82 | I72: 44 | J72: 36 | O72: 2 | V72: 90 | X72: =SUM(P72:W72) -> 90
A73: УП. 04 | B73: Учебная практика | D73: 7* | F73: =G73+H73 -> 36 | G73: 0 | H73: =I73+J73+K73+L73+M73+N73+O73 -> 36 | L73: 36 | V73: 36 | X73: =SUM(P73:W73) -> 36
A74: ПП.04 | B74: Производственная практика | F74: =G74+H74 -> 72 | G74: 0 | H74: =I74+J74+K74+L74+M74+N74+O74 -> 72 | M74: 72 | V74: 72 | X74: =SUM(P74:W74) -> 72
A75: ПМ.04.Э | B75: Экзамен по модулю | E75: 7 | F75: =G75+H75 -> 12 | G75: 0 | H75: =I75+J75+K75+L75+M75+N75+O75 -> 12 | O75: 12 | V75: 12 | X75: =SUM(P75:W75) -> 12
A76: ПМ. 05 | B76: Организация и ведение процессов приготовления, оформления и подготовки к реализации хлебобулочных, мучных кондитерских изделий сложного ассортимента с учетом потребностей различных категорий потребителей, видов и форм обслуживания | C76: 0 | D76: 3 | E76: 1 | F76: =SUM(F77:F81) -> 594 | G76: 0 | H76: =I76+J76+K76+L76+M76+N76+O76 -> 584 | I76: =SUM(I77:I81) -> 172 | J76: =SUM(J77:J81) -> 160 | K76: =SUM(K77:K81) -> 20 | L76: =SUM(L77:L81) -> 108 | M76: =SUM(M77:M81) -> 108 | N76: =SUM(N77:N81) -> 0 | O76: =SUM(O77:O81) -> 16 | P76: =SUM(P77:P81) -> 0 | Q76: =SUM(Q77:Q81) -> 0 | R76: =SUM(R77:R81) -> 0 | S76: =SUM(S77:S81) -> 0 | T76: =SUM(T77:T81) -> 0 | U76: =SUM(U77:U81) -> 0 | V76: =SUM(V77:V81) -> 318 | W76: =SUM(W77:W81) -> 276 | X76: =SUM(P76:W76) -> 594
A77: МДК. 05.01 | B77: Организация процессов приготовления, подготовки к реализации хлебобулочных, мучных кондитерских изделий сложного ассортимента | D77: 8* | F77: =G77+H77 -> 80 | G77: 0 | H77: =I77+J77+K77+L77+M77+N77+O77 -> 80 | I77: 40 | J77: 38 | O77: 2 | V77: 60 | W77: 20 | X77: =SUM(P77:W77) -> 80
A78: МДК 05.02 | B78: Процессы приготовления, подготовки к реализации хлебобулочных, мучных кондитерских изделий сложного ассортимента | D78: 8* | F78: =G78+H78 -> 286 | G78: 10 | H78: =I78+J78+K78+L78+M78+N78+O78 -> 276 | I78: 132 | J78: 122 | K78: 20 | O78: 2 | V78: 186 | W78: 100 | X78: =SUM(P78:W78) -> 286
A79: УП. 05 | B79: Учебная практика | D79: 8* | F79: =G79+H79 -> 108 | G79: 0 | H79: =I79+J79+K79+L79+M79+N79+O79 -> 108 | L79: 108 | V79: 72 | W79: 36 | X79: =SUM(P79:W79) -> 108
A80: ПП.05 | B80: Производственная практика | F80: =G80+H80 -> 108 | G80: 0 | H80: 108 | M80: 108 | W80: 108 | X80: =SUM(P80:W80) -> 108
A81: ПМ.05.Э | B81: Экзамен по модулю | E81: 8 | F81: =G81+H81 -> 12 | G81: 0 | H81: 12 | O81: 12 | W81: 12 | X81: =SUM(P81:W81) -> 12
A82: ПМ. 06 | B82: Организация и контроль текущей деятельности подчиненного персонала | C82: 0 | D82: 2 | E82: 1 | F82: =SUM(F83:F86) -> 228 | G82: 0 | H82: =I82+J82+K82+L82+M82+N82+O82 -> 220 | I82: =SUM(I83:I86) -> 56 | J82: =SUM(J83:J86) -> 42 | K82: =SUM(K83:K86) -> 0 | L82: =SUM(L83:L86) -> 36 | M82: =SUM(M83:M86) -> 72 | N82: =SUM(N83:N86) -> 0 | O82: =SUM(O83:O86) -> 14 | P82: =SUM(P83:P86) -> 0 | Q82: =SUM(Q83:Q86) -> 0 | R82: =SUM(R83:R86) -> 0 | S82: =SUM(S83:S86) -> 0 | T82: =SUM(T83:T86) -> 0 | U82: =SUM(U83:U86) -> 0 | V82: =SUM(V83:V86) -> 0 | W82: =SUM(W83:W86) -> 228 | X82: =SUM(P82:W82) -> 228
A83: МДК. 06.01 | B83: Оперативное управление текущей деятельностью подчиненного персонала | D83: 8 | F83: =G83+H83 -> 108 | G83: 8 | H83: =I83+J83+K83+L83+M83+N83+O83 -> 100 | I83: 56 | J83: 42 | O83: 2 | W83: 108 | X83: =SUM(P83:W83) -> 108
A84: УП. 06 | B84: Учебная практика | D84: 8* | F84: =G84+H84 -> 36 | G84: 0 | H84: =I84+J84+K84+L84+M84+N84+O84 -> 36 | L84: 36 | W84: 36 | X84: =SUM(P84:W84) -> 36
A85: ПП.06 | B85: Производственная практика | F85: =G85+H85 -> 72 | G85: 0 | H85: =I85+J85+K85+L85+M85+N85+O85 -> 72 | M85: 72 | W85: 72 | X85: =SUM(P85:W85) -> 72
A86: ПМ.06.Э | B86: Экзамен по модулю | E86: 8 | F86: =G86+H86 -> 12 | G86: 0 | H86: =I86+J86+K86+L86+M86+N86+O86 -> 12 | O86: 12 | W86: 12 | X86: =SUM(P86:W86) -> 12
A87: ПМ. 07 | B87: Выполнение работ по профессиям "Повар" и "Кондитер" | D87: 3 | E87: 1 | F87: =SUM(F88:F92) -> 664 | G87: =SUM(G88:G92) -> 16 | H87: =SUM(H88:H92) -> 648 | I87: =SUM(I88:I92) -> 154 | J87: =SUM(J88:J92) -> 142 | K87: =SUM(K88:K92) -> 0 | L87: =SUM(L88:L92) -> 144 | M87: =SUM(M88:M92) -> 180 | N87: =SUM(N88:N92) -> 0 | O87: =SUM(O88:O92) -> 28 | P87: =SUM(P88:P92) -> 0 | Q87: =SUM(Q88:Q92) -> 0 | R87: =SUM(R88:R92) -> 0 | S87: =SUM(S88:S92) -> 0 | T87: =SUM(T88:T92) -> 260 | U87: =SUM(U88:U92) -> 404 | V87: =SUM(V88:V92) -> 0 | W87: =SUM(W88:W92) -> 0 | X87: =SUM(P87:W87) -> 664
A88: МДК. 07.01 | B88: Технология выполнения работ по профессии "Повар" | D88: 6 | F88: =G88+H88 -> 182 | G88: 10 | H88: =I88+J88+K88+L88+M88+N88+O88 -> 172 | I88: 96 | J88: 74 | O88: 2 | T88: 82 | U88: 100 | X88: =SUM(P88:W88) -> 182
A89: МДК. 07.02 | B89: Технология выполнения работ по профессии "Кондитер" | D89: 6 | F89: =G89+H89 -> 134 | G89: 6 | H89: =I89+J89+K89+L89+M89+N89+O89 -> 128 | I89: 58 | J89: 68 | O89: 2 | T89: 34 | U89: 100 | X89: =SUM(P89:W89) -> 134
A90: УП. 07 | B90: Учебная практика | D90: 6* | F90: 144 | G90: 0 | H90: =I90+J90+K90+L90+M90+N90+O90 -> 144 | L90: 144 | T90: 72 | U90: 72 | X90: =SUM(P90:W90) -> 144
A91: ПП. 07 | B91: Производственная практика | F91: 180 | G91: 0 | H91: =I91+J91+K91+L91+M91+N91+O91 -> 180 | M91: 180 | T91: 72 | U91: 108 | X91: =SUM(P91:W91) -> 180
A92: ПМ.07.Э | B92: Экзамен по модулю | E92: 6 | F92: 24 | G92: 0 | H92: =I92+J92+K92+L92+M92+N92+O92 -> 24 | O92: 24 | U92: 24 | X92: =SUM(P92:W92) -> 24
A93: ПДП | B93: Производственная практика (преддипломная) | F93: 144 | G93: 0 | H93: =I93+J93+K93+L93+M93+N93+O93 -> 144 | M93: 144 | W93: 144 | X93: =SUM(P93:W93) -> 144
A94: ГИА. 00 | B94: Государственная итоговая аттестация | F94: 216 | G94: 0 | H94: =I94+J94+K94+L94+M94+N94+O94 -> 216 | O94: 216 | P94: 0 | W94: 216 | X94: =SUM(P94:W94) -> 216
A95: ГИА. 01 | B95: Подготовка дипломной работы, подготовка к демонстрационному экзамену | F95: 144 | G95: 0 | H95: =I95+J95+K95+L95+M95+N95+O95 -> 144 | O95: 144 | W95: 144 | X95: =SUM(P95:W95) -> 144
A96: ГИА. 02 | B96: Защита дипломной работы(проекта) | F96: 36 | G96: 0 | H96: 36 | O96: 36 | W96: 36 | X96: =SUM(P96:W96) -> 36
A97: ГИА. 03 | B97: Проведение демонстрационного экзамена | F97: 36 | H97: 36 | O97: 36 | W97: 36 | X97: =SUM(P97:W97) -> 36
B98: Объём образовательной программы вакадемических часах | C98: =C14+C31+C38+C41+C51+C93+C94 -> 3 | D98: =D14+D31+D38+D41+D51+D93+D94 -> 41 | E98: =E14+E31+E38+E41+E51+E93+E94 -> 19 | F98: =F14+F31+F38+F41+F51+F93+F94 -> 5940 | G98: =G14+G31+G38+G41+G51+G93+G94 -> 86 | H98: =H14+H31+H38+H41+H51+H93+H94 -> 5838 | I98: =I14+I31+I38+I41+I51+I93+I94 -> 1801 | J98: =J14+J31+J38+J41+J51+J93+J94 -> 2077 | K98: =K14+K31+K38+K41+K51+K93+K94 -> 40 | L98: =L14+L31+L38+L41+L51+L93+L94 -> 540 | M98: =M14+M31+M38+M41+M51+M93+M94 -> 900 | N98: =N14+N31+N38+N41+N51+N93+N94 -> 38 | O98: =O14+O31+O38+O41+O51+O93+O94 -> 442 | P98: =P14+P31+P38+P41+P51+P93+P94 -> 612 | Q98: =Q14+Q31+Q38+Q41+Q51+Q93+Q94 -> 864 | R98: =R14+R31+R38+R41+R51+R93+R94 -> 612 | S98: =S14+S31+S38+S41+S51+S93+S94 -> 864 | T98: =T14+T31+T38+T41+T51+T93+T94 -> 612 | U98: =U14+U31+U38+U41+U51+U93+U94 -> 864 | V98: =V14+V31+V38+V41+V51+V93+V94 -> 612 | W98: =W14+W31+W38+W41+W51+W93+W94 -> 900 | X98: =SUM(P98:W98) -> 5940
I100: часов дисциплин и МДК | O100: =SUM(P100:W100) -> 4536 | P100: =P98-P101-P102-P103 -> 612 | Q100: =Q98-Q101-Q102-Q103 -> 864 | R100: =R98-R101-R102-R103 -> 612 | S100: =S98-S101-S102-S103 -> 468 | T100: =T98-T101-T102-T103 -> 468 | U100: =U98-U101-U102-U103 -> 576 | V100: =V98-V101-V102-V103 -> 432 | W100: =W98-W101-W102-W103 -> 504 | X100: =SUM(P100:W100) -> 4536
A101: Государственная (итоговая) аттестация | I101: часов учебной практики 15 недель | O101: =SUM(P101:W101) -> 504 | S101: =S55+S61+S67+S73+S79+S84+S90 -> 144 | T101: =T55+T61+T67+T73+T79+T84+T90 -> 72 | U101: =U55+U61+U67+U73+U79+U84+U90 -> 108 | V101: =V55+V61+V67+V73+V79+V84+V90 -> 108 | W101: =W55+W61+W67+W73+W79+W84+W90 -> 72 | X101: =SUM(P101:W101) -> 504
A102: 1.1. Дипломная работа (проект) | I102: часов производств. практики 23 недель | O102: =SUM(P102:W102) -> 756 | S102: =S56+S62+S68+S74+S80+S85+S91 -> 252 | T102: =T56+T62+T68+T74+T80+T85+T91 -> 72 | U102: =U56+U62+U68+U74+U80+U85+U91 -> 180 | V102: =V56+V62+V68+V74+V80+V85+V91 -> 72 | W102: =W56+W62+W68+W74+W80+W85+W91 -> 180 | X102: =SUM(P102:W102) -> 756
A103: Выполнение дипломной работы (проекта) с 18.05 по 14.06 (всего 4 нед.) | I103: часов преддиплом. практики | O103: =SUM(P103:W103) -> 144 | W103: 144 | X103: =SUM(P103:W103) -> 144
A104: Защита дипломной работы с 15.06 по 28.06 (всего 2 нед.) | I104: кол.-во экзаменов | O104: =SUM(P104:W104) -> 19 | P104: 1 | Q104: 3 | R104: 1 | S104: 4 | T104: 2 | U104: 4 | V104: 2 | W104: 2 | X104: =SUM(P104:W104) -> 19
A105: 1.2. Государственный экзамен - выполнение демонстрационного экзамена | I105: кол.-во дифф. зачетов | O105: =SUM(P105:W105) -> 41 | P105: 1 | Q105: 11 | R105: 3 | S105: 7 | T105: 1 | U105: 9 | V105: 3 | W105: 6 | X105: =SUM(P105:W105) -> 41
I106: кол.-во зачетов | O106: =SUM(P106:W106) -> 3 | P106: 1 | Q106: 0 | S106: 2 | X106: =SUM(P106:W106) -> 3
I107: Курсовых работ (проектов) | O107: =SUM(P107:W107) -> 2 | T107: 1 | V107: 1 | X107: =SUM(P107:W107) -> 2
